bitfinex/quotes_SOLUSD_20250821
["timestamp","ask_amount","ask_price","bid_price","bid_amount"]
[1755807017432,0.06,180.61,180.6,54.66551847]
[1755807018208,0.06,180.61,180.6,53.99551847]
[1755807020634,0.06,180.61,180.6,48.18295856]
[1755807020931,0.06,180.61,180.6,53.99551847]
[1755807025716,0.06,180.61,180.6,68.26111248]
[1755807025948,0.06,180.63,180.61,13.87991715]
[1755807026135,0.06,180.63,180.62,11.90944296]
[1755807026440,0.06,180.63,180.62,12.29511982]
[1755807026643,0.06,180.63,180.62,19.40815392]
[1755807026949,0.06,180.63,180.62,20.07815392]
[1755807027432,0.06,180.63,180.62,13.59559401]
[1755807027630,0.06,180.63,180.62,25.61463935]
[1755807028548,0.06,180.63,180.62,24.94463935]
[1755807029246,0.06,180.63,180.62,11.34904534]
[1755807029830,0.06,180.63,180.62,13.56800034]
[1755807031357,0.06,180.63,180.62,8.03151491]
[1755807034354,0.77,180.63,180.62,8.03151491]
[1755807035559,0.77,180.63,180.62,2.218955]
[1755807035736,0.77,180.63,180.62,28.218955]
[1755807035944,0.77,180.63,180.62,34.03151491]
[1755807036342,0.77,180.63,180.62,28.218955]
[1755807037761,0.77,180.63,180.62,2.218955]
[1755807038165,0.77,180.63,180.62,28.218955]
[1755807038454,0.77,180.63,180.62,34.03151491]
[1755807040872,0.77,180.63,180.62,39.56800034]
[1755807041076,0.77,180.63,180.62,34.03151491]
[1755807045883,0.77,180.63,180.62,39.56800034]
[1755807047980,0.77,180.63,180.62,34.03151491]
[1755807048581,0.77,180.63,180.62,39.56800034]
[1755807050884,0.77,180.63,180.62,34.03151491]
[1755807051854,0.77,180.63,180.62,39.56800034]
[1755807052051,0.06,180.63,180.62,39.56800034]
[1755807052279,0.76,180.63,180.62,39.56800034]
[1755807052482,0.76,180.63,180.62,39.59800034]
[1755807052886,0.06,180.63,180.62,39.59800034]
[1755807054467,0.06,180.63,180.62,40.28800034]
[1755807054666,0.06,180.63,180.62,39.59800034]
[1755807055965,0.06,180.63,180.62,33.78544043]
[1755807056172,0.06,180.63,180.62,39.59800034]
[1755807057995,0.06,180.63,180.62,40.28800034]
[1755807058389,0.06,180.63,180.62,38.18985997]
[1755807058586,0.06,180.64,180.63,13.59559401]
[1755807058787,0.2,180.66,180.65,26.0]
[1755807058975,0.2,180.66,180.65,29.71441954]
[1755807059294,0.2,180.66,180.65,26.0]
[1755807059295,0.9,180.66,180.65,26.0]
[1755807059588,0.9,180.66,180.65,31.93349854]
[1755807060795,0.9,180.66,180.65,37.46906455]
[1755807061170,9.96270165,180.66,180.65,28.219079]
[1755807061377,13.67712119,180.66,180.65,2.219079]
[1755807061777,13.67712119,180.66,180.65,26.0]
[1755807061984,9.96270165,180.66,180.65,26.0]
[1755807063092,52.86270165,180.66,180.65,26.0]
[1755807063677,58.66823988,180.66,180.65,26.0]
[1755807064300,52.86270165,180.66,180.65,26.0]
[1755807065702,52.86270165,180.66,180.65,31.53556601]
[1755807066694,9.06270165,180.65,180.64,5.566426]
[1755807066895,9.76270165,180.65,180.64,5.566426]
[1755807072919,9.76270165,180.65,180.64,11.10229845]
[1755807073586,52.86270165,180.66,180.64,11.10229845]
[1755807073788,9.06270165,180.65,180.64,11.10229845]
[1755807074101,9.06270165,180.65,180.64,5.53587245]
[1755807074426,9.06270165,180.65,180.64,22.18173245]
[1755807075099,51.96270165,180.65,180.64,22.18173245]
[1755807075302,42.9,180.65,180.64,22.18173245]
[1755807075919,51.96270165,180.65,180.64,22.18173245]
[1755807077315,52.66270165,180.65,180.64,22.18173245]
[1755807078221,52.66270165,180.65,180.64,16.64586]
[1755807078905,52.66270165,180.65,180.64,22.18173245]
[1755807079692,51.96270165,180.65,180.64,22.18173245]
[1755807080201,52.66270165,180.65,180.64,22.18173245]
[1755807081122,51.96270165,180.65,180.64,22.18173245]
[1755807082235,52.66270165,180.65,180.64,22.18173245]
[1755807084403,51.96270165,180.65,180.64,22.18173245]
[1755807084805,42.9,180.65,180.64,26.57698733]
[1755807085000,42.88,180.65,180.64,26.57698733]
[1755807085435,42.88,180.65,180.64,26.60698733]
[1755807085800,0.06,180.65,180.64,26.60698733]
[1755807086232,0.06,180.65,180.64,25.92698733]
[1755807090916,0.06,180.65,180.64,26.60698733]
[1755807091658,0.06,180.65,180.64,40.20258134]
[1755807092314,0.06,180.65,180.64,42.28836379]
[1755807092733,0.2,180.66,180.65,13.59559401]
[1755807092935,0.2,180.66,180.65,19.81116002]
[1755807093146,0.2,180.66,180.65,25.61219735]
[1755807096246,0.2,180.66,180.65,27.83078335]
[1755807101353,0.2,180.66,180.65,21.34974602]
[1755807101557,0.2,180.66,180.65,27.15078335]
[1755807101949,0.2,180.66,180.65,27.83078335]
[1755807106173,0.2,180.66,180.65,27.15078335]
[1755807106384,0.2,180.66,180.65,27.83078335]
[1755807108381,0.2,180.66,180.65,13.55518934]
[1755807108382,0.91,180.66,180.65,13.55518934]
[1755807110392,0.91,180.66,180.65,2.218586]
[1755807110550,9.97270165,180.66,180.65,2.218586]
[1755807110755,15.77373898,180.66,180.65,2.218586]
[1755807111165,15.77373898,180.66,180.65,28.218586]
[1755807111166,9.97270165,180.66,180.65,28.218586]
[1755807113380,9.97270165,180.66,180.65,2.218586]
[1755807113381,15.77373898,180.66,180.65,2.218586]
[1755807115564,9.06270165,180.65,180.64,2.73]
[1755807115766,15.57373898,180.65,180.64,2.73]
[1755807115970,15.57373898,180.65,180.64,19.378631]
[1755807116588,15.85806212,180.65,180.64,2.73]
[1755807117783,19.5542933,180.65,180.64,2.73]
[1755807117992,19.5542933,180.65,180.64,28.73]
[1755807118764,19.5542933,180.65,180.64,26.03]
[1755807120078,62.3942933,180.65,180.64,26.03]
[1755807121058,58.69806212,180.65,180.64,26.03]
[1755807121799,62.39038706,180.65,180.64,26.03]
[1755807122460,58.69806212,180.65,180.64,26.03]
[1755807124992,58.69806212,180.65,180.64,0.03]
[1755807128595,58.41373898,180.65,180.64,0.03]
[1755807128983,58.41373898,180.65,180.64,16.679555]
[1755807130376,56.32917013,180.65,180.64,16.679555]
[1755807134307,56.61349327,180.65,180.64,0.03]
[1755807134605,70.20908728,180.65,180.64,0.03]
[1755807134771,70.20908728,180.65,180.64,26.03]
[1755807135285,70.26908728,180.65,180.64,0.03]
[1755807135668,73.95107937,180.65,180.64,0.03]
[1755807138500,76.04464458,180.65,180.64,0.03]
[1755807146091,19.60905057,180.65,180.64,0.03]
[1755807146408,58.76705848,180.65,180.64,0.03]
[1755807146605,58.62489691,180.65,180.64,0.03]
[1755807146789,57.91489691,180.65,180.64,0.03]
[1755807146994,58.05705848,180.65,180.64,0.03]
[1755807150012,58.72705848,180.65,180.64,0.03]
[1755807151028,76.01027452,180.65,180.64,0.03]
[1755807152717,80.11068532,180.65,180.64,0.03]
[1755807155807,80.11599974,180.65,180.64,0.03]
[1755807156407,84.75865791,180.65,180.64,0.03]
[1755807158408,76.42837771,180.65,180.64,0.03]
[1755807158597,84.7470551,180.65,180.64,0.03]
[1755807158908,84.74935246,180.65,180.64,0.03]
[1755807159722,80.12786502,180.65,180.64,0.03]
[1755807160308,78.0358235,180.65,180.64,0.03]
[1755807161002,63.77022949,180.65,180.64,0.03]
[1755807161329,64.44022949,180.65,180.64,0.03]
[1755807163710,78.0358235,180.65,180.64,0.03]
[1755807165234,78.03984322,180.65,180.64,0.03]
[1755807168207,78.0394311,180.65,180.64,0.03]
[1755807173054,82.66091854,180.65,180.64,0.03]
[1755807173254,78.0394311,180.65,180.64,0.03]
[1755807174328,73.92780092,180.65,180.64,0.03]
[1755807174509,78.03855837,180.65,180.64,0.03]
[1755807174910,35.19855837,180.65,180.64,0.03]
[1755807175214,78.01855837,180.65,180.64,0.03]
[1755807178310,35.19855837,180.65,180.64,0.03]
[1755807178616,78.01855837,180.65,180.64,0.03]
[1755807179234,82.64004581,180.65,180.64,0.03]
[1755807180542,39.82004581,180.65,180.64,0.03]
[1755807180728,82.64004581,180.65,180.64,0.03]
[1755807181116,82.64356017,180.65,180.64,0.03]
[1755807181319,22.65829566,180.63,180.62,0.03]
[1755807181620,96.79215539,180.63,180.62,0.03]
[1755807181813,97.49215539,180.63,180.62,0.03]
[1755807182012,92.86404141,180.63,180.62,0.03]
[1755807182641,92.86245505,180.63,180.62,0.03]
[1755807184508,93.0696445,180.63,180.62,0.03]
[1755807184713,82.61566799,180.63,180.62,0.03]
[1755807185229,97.48763667,180.63,180.62,0.03]
[1755807191342,93.37495122,180.63,180.62,0.03]
[1755807191647,97.48391482,180.63,180.62,0.03]
[1755807192037,93.37495122,180.63,180.62,0.03]
[1755807192231,97.48359361,180.63,180.62,0.03]
[1755807192627,97.48359361,180.63,180.62,0.74]
[1755807192628,34.46644331,180.63,180.62,0.74]
[1755807192853,77.28644331,180.63,180.62,0.74]
[1755807193842,77.28644331,180.63,180.62,0.03]
[1755807195129,77.28763653,180.63,180.62,0.03]
[1755807199858,64.37204252,180.63,180.62,0.03]
[1755807200036,78.5640112,180.63,180.62,0.03]
[1755807201144,79.2440112,180.63,180.62,0.03]
[1755807201457,79.23984373,180.63,180.62,0.03]
[1755807201955,79.23888847,180.63,180.62,0.03]
[1755807203562,78.55888847,180.63,180.62,0.03]
[1755807204130,63.68691979,180.63,180.62,0.03]
[1755807204335,63.69111538,180.63,180.62,0.7]
[1755807206854,63.69111538,180.63,180.62,0.03]
[1755807208946,63.69279587,180.63,180.62,0.03]
[1755807210040,79.24476455,180.63,180.62,0.03]
[1755807210239,83.8683526,180.63,180.62,0.03]
[1755807210445,79.75944413,180.63,180.62,0.03]
[1755807210677,83.86873101,180.63,180.62,0.03]
[1755807211073,83.86862282,180.63,180.62,0.03]
[1755807214056,64.37306609,180.63,180.62,0.03]
[1755807215574,79.24503477,180.63,180.62,0.03]
[1755807217584,83.86862282,180.63,180.62,0.03]
[1755807219771,83.86772311,180.63,180.62,0.03]
[1755807225764,83.87116804,180.63,180.62,0.03]
[1755807226080,83.19116804,180.63,180.62,0.03]
[1755807226282,63.69561131,180.63,180.62,0.7]
[1755807226672,63.69561131,180.63,180.62,0.03]
[1755807227674,16.7638874,180.63,180.62,0.73]
[1755807227880,59.5438874,180.63,180.62,0.73]
[1755807229189,12.76157209,180.63,180.62,26.73]
[1755807229377,51.84270165,180.63,180.62,28.980434]
[1755807229571,51.84270165,180.63,180.62,2.980434]
[1755807230789,51.84270165,180.63,180.62,6.69842617]
[1755807231667,0.06,180.64,180.62,6.69842617]
[1755807231668,9.12270165,180.64,180.62,6.69842617]
[1755807231883,51.84270165,180.63,180.62,2.280434]
[1755807232579,51.84270165,180.63,180.62,2.980434]
[1755807232766,51.84270165,180.63,180.62,28.980434]
[1755807232961,51.84270165,180.63,180.62,32.69842617]
[1755807235396,51.84270165,180.63,180.62,2.980434]
[1755807236508,51.84270165,180.63,180.62,28.980434]
[1755807236808,51.84270165,180.63,180.62,32.69842617]
[1755807238678,0.06,180.64,180.62,32.69842617]
[1755807238898,42.76,180.63,180.62,33.81691943]
[1755807239083,42.76,180.63,180.62,31.56648543]
[1755807239387,42.76,180.63,180.62,48.91234443]
[1755807240103,0.06,180.64,180.63,13.59559401]
[1755807240404,42.82,180.64,180.63,14.29559401]
[1755807240712,0.06,180.64,180.63,23.5497651]
[1755807240889,0.06,180.64,180.63,25.7689671]
[1755807253513,0.06,180.64,180.63,19.53278818]
[1755807253809,0.06,180.64,180.63,25.0689671]
[1755807258918,9.82270165,180.64,180.63,2.219202]
[1755807259713,13.54069382,180.64,180.63,2.219202]
[1755807260018,9.82270165,180.64,180.63,2.219202]
[1755807262401,13.54069382,180.64,180.63,2.219202]
[1755807262800,13.54069382,180.64,180.63,28.219202]
[1755807265927,13.54069382,180.64,180.63,28.249202]
[1755807272720,9.82270165,180.64,180.63,28.249202]
[1755807273116,13.54069382,180.64,180.63,28.249202]
[1755807273818,9.12270165,180.64,180.63,34.47538092]
[1755807274012,0.06,180.64,180.63,34.47538092]
[1755807276837,9.12270165,180.64,180.63,33.78538092]
[1755807277518,0.06,180.64,180.63,33.78538092]
[1755807277721,9.12270165,180.64,180.63,33.78538092]
[1755807280445,0.06,180.64,180.63,33.78538092]
[1755807281145,9.12270165,180.64,180.63,33.78538092]
[1755807281321,9.82270165,180.64,180.63,28.249202]
[1755807282136,13.54069382,180.64,180.63,28.249202]
[1755807284132,42.76,180.64,180.63,2.249202]
[1755807284344,42.76,180.64,180.63,7.78538092]
[1755807285147,51.82270165,180.64,180.63,7.78538092]
[1755807286620,52.52270165,180.64,180.63,2.249202]
[1755807287022,52.52270165,180.64,180.63,28.249202]
[1755807287345,56.24069382,180.64,180.63,28.249202]
[1755807288937,52.52270165,180.64,180.63,28.249202]
[1755807289142,56.24069382,180.64,180.63,28.249202]
[1755807295240,51.82270165,180.64,180.63,28.249202]
[1755807295856,56.23069382,180.64,180.63,28.249202]
[1755807296463,56.23069382,180.64,180.63,2.249202]
[1755807296960,9.81270165,180.64,180.63,0.03]
[1755807297162,56.21069382,180.64,180.63,0.03]
[1755807297345,56.21069382,180.64,180.63,16.679555]
[1755807297948,55.52069382,180.64,180.63,16.679555]
[1755807298156,51.80270165,180.64,180.63,16.679555]
[1755807298481,52.49270165,180.64,180.63,16.679555]
[1755807298767,56.21069382,180.64,180.63,16.679555]
[1755807299262,51.80270165,180.64,180.63,16.679555]
[1755807300470,55.52069382,180.64,180.63,16.679555]
[1755807300643,52.49270165,180.64,180.63,16.679555]
[1755807300944,56.21069382,180.64,180.63,16.679555]
[1755807301362,51.80270165,180.64,180.63,16.679555]
[1755807301549,51.80270165,180.64,180.63,22.21573392]
[1755807301747,51.80270165,180.64,180.63,16.679555]
[1755807301965,55.52069382,180.64,180.63,16.679555]
[1755807302166,51.80270165,180.64,180.63,22.21573392]
[1755807302549,51.80270165,180.64,180.63,16.679555]
[1755807302750,51.80270165,180.64,180.63,22.21573392]
[1755807303065,51.80270165,180.64,180.63,22.91573392]
[1755807303651,51.80270165,180.64,180.63,17.379555]
[1755807303976,56.21069382,180.64,180.63,16.679555]
[1755807304954,60.20389409,180.64,180.63,0.03]
[1755807305141,60.20389409,180.64,180.63,26.03]
[1755807306655,60.20389409,180.64,180.63,0.03]
[1755807306869,79.1944991,180.64,180.63,0.03]
[1755807308784,9.34702479,180.62,180.61,0.03]
[1755807309080,16.48957095,180.62,180.61,0.03]
[1755807309285,9.06270165,180.62,180.61,0.03]
[1755807309579,56.15069382,180.62,180.61,0.03]
[1755807310187,55.46069382,180.62,180.61,0.03]
[1755807310490,57.5502536,180.62,180.61,0.03]
[1755807310653,57.5502536,180.62,180.61,26.03]
[1755807310861,51.74270165,180.62,180.61,26.03]
[1755807311184,57.5502536,180.62,180.61,26.03]
[1755807311382,9.06270165,180.62,180.61,0.03]
[1755807311555,51.74270165,180.62,180.61,0.73]
[1755807311887,51.74270165,180.62,180.61,0.03]
[1755807312590,51.74270165,180.62,180.61,6.297062]
[1755807312949,57.5502536,180.62,180.61,6.297062]
[1755807313346,57.5502536,180.62,180.61,32.297062]
[1755807313575,57.5502536,180.62,180.61,6.297062]
[1755807315682,58.2402536,180.62,180.61,6.297062]
[1755807316082,57.5502536,180.62,180.61,6.297062]
[1755807317559,57.5502536,180.62,180.61,32.297062]
[1755807317765,58.2302536,180.62,180.61,6.297062]
[1755807317963,57.5502536,180.62,180.61,6.297062]
[1755807320262,51.74270165,180.62,180.61,6.297062]
[1755807320573,51.74270165,180.62,180.61,6.957062]
[1755807321080,51.74270165,180.62,180.61,6.297062]
[1755807323500,57.5502536,180.62,180.61,6.297062]
[1755807323660,57.5502536,180.62,180.61,32.297062]
[1755807323964,57.5502536,180.62,180.61,6.297062]
[1755807327003,58.2302536,180.62,180.61,32.297062]
[1755807327214,58.2302536,180.62,180.61,6.297062]
[1755807327781,57.5502536,180.62,180.61,6.297062]
[1755807327970,57.5502536,180.62,180.61,32.297062]
[1755807327971,51.74270165,180.62,180.61,32.297062]
[1755807328279,51.74270165,180.62,180.61,6.957062]
[1755807329188,51.74270165,180.62,180.61,6.297062]
[1755807329769,51.74270165,180.62,180.61,6.957062]
[1755807329991,9.06270165,180.62,180.61,12.49385398]
[1755807330194,51.72270165,180.62,180.61,12.49385398]
[1755807331570,51.78270165,180.62,180.61,12.49385398]
[1755807331972,51.78270165,180.62,180.61,6.957062]
[1755807333990,51.78270165,180.62,180.61,11.83385398]
[1755807334969,51.78270165,180.62,180.61,12.49385398]
[1755807335502,51.78270165,180.62,180.61,11.83385398]
[1755807336587,42.72,180.62,180.61,15.5495252]
[1755807336793,0.06,180.62,180.61,29.80511921]
[1755807337371,0.06,180.64,180.63,43.31126523]
[1755807337800,0.06,180.64,180.63,43.97126523]
[1755807338599,0.06,180.64,180.63,66.15053215]
[1755807343911,0.06,180.64,180.63,81.01321703]
[1755807346500,0.06,180.64,180.63,66.15053215]
[1755807348312,0.2,180.81,180.75,26.0]
[1755807348530,0.2,180.81,180.8,18.5783561]
[1755807348825,0.69,180.9,180.84,26.0]
[1755807349016,0.69,180.9,180.84,40.49394603]
[1755807349314,43.8,180.9,180.89,3.71567122]
[1755807349515,44.49,180.9,180.88,26.0]
[1755807349716,0.69,180.89,180.88,26.0]
[1755807350211,39.92,181.02,180.88,26.67]
[1755807350521,49.64484201,181.01,180.98,26.0]
[1755807350726,43.86,181.01,181.0,26.0]
[1755807350924,44.59,181.01,181.0,26.0]
[1755807351128,44.59,181.01,181.0,30.10788313]
[1755807351425,50.37484201,181.01,181.0,4.10788313]
[1755807352021,50.37484201,181.01,180.98,26.0]
[1755807352225,0.69,181.0,180.99,26.0]
[1755807352388,44.59,181.0,180.99,31.78484201]
[1755807352596,0.69,181.0,180.99,31.78484201]
[1755807352801,43.98,181.0,180.99,31.78484201]
[1755807353222,43.98,181.03,180.99,37.31000914]
[1755807353433,0.69,181.0,180.99,37.31000914]
[1755807353730,0.69,181.02,180.99,37.31000914]
[1755807353900,43.98,181.03,180.99,37.31000914]
[1755807354095,0.69,181.01,180.99,37.31000914]
[1755807356104,0.69,181.01,181.0,16.611756]
[1755807356306,132.4,181.11,181.03,26.0]
[1755807356516,5.78484201,181.05,181.03,26.0]
[1755807356722,44.61,181.04,181.03,26.0]
[1755807356922,0.69,181.08,181.04,26.0]
[1755807357235,44.61,181.07,181.05,26.0]
[1755807357401,50.41484201,181.06,181.05,26.0]
[1755807357723,50.41484201,181.06,181.03,31.52391148]
[1755807357929,6.47484201,181.05,181.03,31.52391148]
[1755807358125,0.69,181.04,181.03,31.52391148]
[1755807358838,44.61,181.04,181.03,31.52391148]
[1755807359030,44.61,181.04,181.03,26.0]
[1755807359205,44.61,181.04,181.03,31.784842]
[1755807361414,50.39484201,181.04,181.03,31.784842]
[1755807361621,44.61,181.04,181.03,31.784842]
[1755807365411,50.39484201,181.04,181.03,5.784842]
[1755807365624,50.67916515,181.04,181.03,5.784842]
[1755807365814,50.55916515,181.04,181.03,5.784842]
[1755807366018,0.28432314,181.03,180.99,26.0]
[1755807366223,0.69,181.02,180.98,26.0]
[1755807366438,5.78484201,180.99,180.98,26.0]
[1755807366612,6.47484201,180.99,180.98,26.0]
[1755807367132,6.47484201,180.99,180.94,11.31142567]
[1755807367322,50.27484201,180.98,180.97,26.0]
[1755807367835,50.27484201,180.98,180.91,13.59559401]
[1755807368136,5.78484201,180.95,180.92,16.619117]
[1755807368435,44.47,180.94,180.92,16.619117]
[1755807368735,0.69,180.93,180.92,16.619117]
[1755807368915,6.47484201,180.93,180.92,16.619117]
[1755807369116,0.69,180.93,180.92,16.619117]
[1755807369520,0.69,180.93,180.84,0.67]
[1755807369521,6.47484201,180.93,180.84,0.67]
[1755807369720,5.78484201,180.91,180.89,16.619117]
[1755807369920,49.56484201,180.9,180.88,26.0]
[1755807370126,43.78,180.9,180.89,26.0]
[1755807372016,44.47,180.9,180.89,26.0]
[1755807372438,43.78,180.9,180.89,26.0]
[1755807373751,49.56484201,180.9,180.89,26.0]
[1755807373913,50.25484201,180.9,180.89,26.0]
[1755807374109,50.25484201,180.9,180.87,26.0]
[1755807374315,5.78484201,180.88,180.86,16.624643]
[1755807374540,43.72,180.87,180.86,16.624643]
[1755807376543,43.72,180.87,180.86,22.15378156]
[1755807377545,5.78484201,180.9,180.89,26.0]
[1755807377724,49.46484201,180.9,180.89,26.0]
[1755807377922,50.14484201,180.9,180.89,26.0]
[1755807378237,50.14484201,180.9,180.88,26.0]
[1755807378420,0.68,180.92,180.89,26.0]
[1755807378620,44.34,180.91,180.89,42.62188]
[1755807378820,132.4,180.96,180.89,48.40672201]
[1755807379027,6.46484201,180.94,180.89,48.40672201]
[1755807379237,43.72,180.93,180.89,48.40672201]
[1755807379541,43.72,180.93,180.89,49.06672201]
[1755807379745,43.72,180.93,180.92,26.0]
[1755807379951,6.46484201,180.94,180.93,26.0]
[1755807380119,50.18484201,180.94,180.93,26.0]
[1755807382228,0.68,180.94,180.93,26.0]
[1755807382434,44.36,180.94,180.93,26.0]
[1755807383839,43.68,180.94,180.93,26.0]
[1755807384147,44.36,180.94,180.93,26.0]
[1755807384843,0.68,180.94,180.93,30.07374764]
[1755807385141,44.34,180.94,180.93,30.07374764]
[1755807386123,0.68,180.94,180.93,30.07374764]
[1755807386433,44.3,180.94,180.93,30.07374764]
[1755807386839,44.3,180.94,180.93,30.08018196]
[1755807387437,0.68,180.94,180.93,30.08018196]
[1755807387644,44.3,180.94,180.93,30.08018196]
[1755807388427,44.28,180.94,180.93,30.08018196]
[1755807390873,44.28,180.94,180.93,4.08018196]
[1755807391763,50.06484201,180.94,180.93,30.08018196]
[1755807391976,44.22,180.94,180.93,30.08018196]
[1755807392134,50.00484201,180.94,180.93,30.08018196]
[1755807392969,50.00484201,180.94,180.93,26.0]
[1755807393274,50.00484201,180.94,180.93,30.11211022]
[1755807397172,44.22,180.94,180.93,30.11211022]
[1755807398062,44.28,180.94,180.93,30.11211022]
[1755807399069,0.74,180.94,180.93,30.11211022]
[1755807399288,44.2,180.94,180.93,30.11211022]
[1755807400785,49.98484201,180.94,180.93,30.11211022]
[1755807402274,49.94484201,180.94,180.93,30.11211022]
[1755807402475,49.94484201,180.94,180.93,30.12604797]
[1755807402781,49.94484201,180.94,180.93,26.0]
[1755807402975,49.94484201,180.94,180.93,30.12616844]
[1755807403287,6.52484201,180.94,180.93,30.12616844]
[1755807403465,43.46,180.94,180.93,30.12616844]
[1755807403787,44.14,180.94,180.93,30.12616844]
[1755807404392,0.74,180.94,180.93,30.12616844]
[1755807404689,44.14,180.94,180.93,30.12616844]
[1755807405966,44.14,180.94,180.93,4.12616844]
[1755807406167,44.14,180.94,180.93,30.12616844]
[1755807407794,44.14,180.94,180.93,4.12616844]
[1755807407969,44.14,180.94,180.93,30.12616844]
[1755807408368,0.06,180.94,180.93,55.70360385]
[1755807408589,0.06,180.94,180.93,42.10800984]
[1755807408794,43.52,180.94,180.93,58.72436584]
[1755807411403,40.82,180.94,180.93,58.72436584]
[1755807411570,40.82,180.94,180.93,58.73639059]
[1755807416098,40.82,180.94,180.93,72.3319846]
[1755807416300,43.36,180.94,180.93,72.3319846]
[1755807416483,0.06,180.96,180.93,72.3319846]
[1755807416686,0.06,180.96,180.95,31.78484201]
[1755807416884,43.4,180.96,180.95,41.4494237]
[1755807417405,43.4,180.96,180.95,43.6649377]
[1755807417982,43.4,180.96,180.95,44.3349377]
[1755807418499,0.06,180.96,180.95,57.93053171]
[1755807419001,43.4,180.98,180.97,24.90621377]
[1755807419186,43.4,180.98,180.97,29.71440696]
[1755807419586,0.06,180.98,180.97,29.71440696]
[1755807419803,0.06,180.98,180.97,46.32524296]
[1755807420793,0.06,180.98,180.97,42.18704977]
[1755807420972,0.06,180.98,180.97,46.32178065]
[1755807421717,0.06,180.98,180.97,45.65178065]
[1755807422502,0.06,180.98,180.97,46.32178065]
[1755807423107,0.06,180.98,180.97,45.65178065]
[1755807423578,0.06,180.98,180.97,20.74556688]
[1755807423787,0.78,180.98,180.97,4.13473088]
[1755807424519,0.78,180.98,180.97,30.13473088]
[1755807425083,0.78,180.98,180.97,4.13473088]
[1755807428338,0.06,180.98,180.97,17.73032489]
[1755807428495,0.06,180.98,180.97,29.71094465]
[1755807428699,0.06,180.98,180.97,46.32178065]
[1755807428901,0.06,180.98,180.97,41.51704977]
[1755807429090,0.06,180.98,180.97,45.65191353]
[1755807429295,43.62,180.98,180.97,4.13486376]
[1755807429597,43.62,180.98,180.97,9.92005448]
[1755807429992,43.62,180.98,180.97,15.44583223]
[1755807430625,43.62,180.98,180.97,32.05942723]
[1755807431620,43.62,180.98,180.97,15.44583223]
[1755807431832,43.62,180.98,180.97,9.66099022]
[1755807431833,44.34,180.98,180.97,9.66099022]
[1755807433195,43.62,180.98,180.97,9.66099022]
[1755807433703,44.34,180.98,180.97,9.66099022]
[1755807434621,44.34,180.98,180.97,4.13521247]
[1755807434828,44.34,180.98,180.97,30.13521247]
[1755807435933,0.78,180.98,180.97,30.13521247]
[1755807436135,44.28,180.98,180.97,30.13521247]
[1755807436502,43.56,180.98,180.97,35.66099022]
[1755807436704,43.56,180.98,180.97,41.44583223]
[1755807438415,0.06,181.02,180.97,69.52285526]
[1755807438728,0.06,181.06,181.01,45.38043602]
[1755807439028,44.16,181.05,181.02,4.13026831]
[1755807439223,0.68,181.04,181.03,4.13026831]
[1755807440229,0.68,181.04,181.03,35.65421461]
[1755807440415,43.48,181.05,181.03,35.65421461]
[1755807440611,43.48,181.05,181.04,30.13026831]
[1755807440818,44.16,181.05,181.04,30.13026831]
[1755807444412,44.16,181.05,181.04,4.13026831]
[1755807445013,44.16,181.05,181.04,30.13026831]
[1755807445938,49.94484201,181.05,181.04,4.13026831]
[1755807446413,0.28432314,181.04,181.0,5.784842]
[1755807446615,5.78484201,181.01,180.95,11.31120625]
[1755807446824,49.92484201,181.0,180.98,26.0]
[1755807447030,49.24484201,181.0,180.99,4.12877221]
[1755807447534,49.24484201,181.0,180.95,11.31120625]
[1755807447535,49.24484201,181.0,180.95,5.78484201]
[1755807447722,6.46484201,180.99,180.96,4.12910691]
[1755807447922,0.68,180.98,180.97,4.12910691]